bitfinex/quotes_SOLUSD_20251208
["timestamp","ask_amount","ask_price","bid_price","bid_amount"]
[1765204707338,9.9137073,137.09,137.08,0.2]
[1765204707513,0.99999999,137.1,137.08,0.87]
[1765204707711,17.008864,137.15,137.08,0.87]
[1765204707712,9.9137073,137.09,137.08,0.2]
[1765204707912,0.99999999,137.1,137.08,0.2]
[1765204708130,0.99999999,137.13,137.09,8.91370731]
[1765204708333,24.288864,137.17,137.08,7.49496087]
[1765204708334,0.99999999,137.11,137.08,7.49496087]
[1765204708635,8.91370731,137.14,137.08,7.49496087]
[1765204708636,0.99999999,137.12,137.09,0.67]
[1765204708836,0.99999999,137.11,137.08,16.40866818]
[1765204709024,0.99999999,137.13,137.1,8.91370731]
[1765204709222,9.61370731,137.17,137.09,0.67]
[1765204709223,0.99999999,137.12,137.09,0.67]
[1765204709534,0.99999999,137.1,137.08,0.2]
[1765204709711,25.92257131,137.09,137.0,0.67]
[1765204709914,0.99999999,137.05,137.03,8.91370731]
[1765204710111,0.99999999,137.05,137.04,8.91370731]
[1765204710309,0.99999999,137.08,137.04,9.58370731]
[1765204710529,0.99999999,137.07,137.06,8.91370731]
[1765204710733,0.99999999,137.09,137.06,8.91370731]
[1765204710935,0.99999999,137.13,137.08,8.91370731]
[1765204711154,0.99999999,137.1,137.07,0.67]
[1765204711352,0.99999999,137.1,137.08,8.91370731]
[1765204711517,0.99999999,137.11,137.09,8.91370731]
[1765204711721,0.99999999,137.13,137.1,8.91370731]
[1765204711946,0.99999999,137.08,137.04,0.67]
[1765204712143,0.99999999,137.07,137.06,8.91370731]
[1765204712454,0.99999999,137.07,137.05,8.91370731]
[1765204712748,0.99999999,137.07,137.06,6.15275221]
[1765204712937,0.99999999,137.08,137.06,6.15275221]
[1765204713237,0.99999999,137.09,137.07,6.15275221]
[1765204713549,0.99999999,137.09,137.08,6.15275221]
[1765204714052,17.008864,137.14,137.08,14.11776242]
[1765204714053,0.99999999,137.1,137.08,14.11776242]
[1765204714222,0.99999999,137.09,137.08,6.15275221]
[1765204714419,0.99999999,137.09,137.08,6.82275221]
[1765204715046,0.99999999,137.08,137.05,7.29620921]
[1765204715246,0.99999999,137.08,137.07,6.15275221]
[1765204715538,0.99999999,137.09,137.07,6.82275221]
[1765204715739,0.99999999,137.1,137.08,13.44776242]
[1765204715949,0.99999999,137.1,137.08,6.15275221]
[1765204716243,0.99999999,137.1,137.01,7.98]
[1765204716244,0.99999999,137.06,137.04,6.15275221]
[1765204716447,0.99999999,137.04,137.01,7.98]
[1765204716654,0.99999999,137.04,137.03,6.15275221]
[1765204718943,0.99999999,137.05,137.03,6.15275221]
[1765204719121,0.99999999,137.06,137.04,6.82275221]
[1765204719437,16.308864,137.1,137.05,6.15275221]
[1765204719438,0.99999999,137.07,137.05,6.15275221]
[1765204719629,0.99999999,137.07,137.06,6.15275221]
[1765204720231,0.99999999,137.05,137.03,0.67]
[1765204720429,0.99999999,137.04,137.03,6.15275221]
[1765204720741,16.308864,137.06,137.0,7.29885844]
[1765204720742,0.99999999,137.02,137.01,7.29834121]
[1765204720940,0.99999999,137.01,137.0,7.29927007]
[1765204721240,0.99999999,137.01,136.99,0.67]
[1765204721418,0.99999999,137.0,136.96,26.9027006]
[1765204721848,0.99999999,137.0,136.99,6.15275221]
[1765204722048,1.69999999,137.0,136.96,7.98]
[1765204722219,0.99999999,136.98,136.97,6.15275221]
[1765204722537,0.99999999,136.97,136.94,7.30211246]
[1765204722741,0.99999999,137.0,136.95,0.67]
[1765204722950,0.99999999,137.04,136.96,16.78994492]
[1765204723120,0.99999999,137.03,136.97,0.67]
[1765204723326,0.99999999,137.05,136.97,0.67]
[1765204723533,0.99999999,137.04,136.98,8.80994492]
[1765204723721,0.99999999,137.03,137.0,6.15275221]
[1765204723927,0.99999999,137.03,136.97,0.67]
[1765204724245,0.99999999,137.03,136.98,25.55117534]
[1765204724747,0.99999999,137.03,136.99,0.67]
[1765204724945,0.99999999,137.06,137.02,6.15275221]
[1765204725149,0.99999999,137.13,137.05,6.15275221]
[1765204725353,0.99999999,137.12,137.06,7.98]
[1765204725650,0.99999999,137.12,137.11,6.15275221]
[1765204725952,1.42960747,137.17,137.06,7.98]
[1765204725953,0.99999999,137.11,137.1,6.15275221]
[1765204726150,0.99999999,137.09,137.07,7.29554242]
[1765204726449,0.72960747,137.13,137.07,7.29554242]
[1765204726450,0.99999999,137.08,137.07,7.29554242]
[1765204726633,0.99999999,137.09,137.07,7.29554242]
[1765204726837,0.99999999,137.09,137.07,7.96554242]
[1765204727040,0.99999999,137.12,137.08,0.67]
[1765204727226,0.99999999,137.13,137.11,6.15275221]
[1765204727426,0.99999999,137.13,137.12,6.15275221]
[1765204727635,0.99999999,137.16,137.12,6.15275221]
[1765204727835,1.72960746,137.15,137.14,6.15275221]
[1765204728031,0.99999999,137.16,137.14,13.44457078]
[1765204728255,1.42960747,137.18,137.14,13.44457078]
[1765204728256,1.72960746,137.15,137.14,6.15275221]
[1765204728428,0.99999999,137.11,137.06,7.98]
[1765204728628,0.99999999,137.11,137.1,6.15275221]
[1765204729332,0.99999999,137.11,137.05,18.24063175]
[1765204729531,0.99999999,137.09,137.08,6.15275221]
[1765204729726,0.99999999,137.11,137.08,6.15275221]
[1765204730031,0.99999999,137.12,137.1,13.44625476]
[1765204730233,0.99999999,137.11,137.1,7.29350255]
[1765204730954,0.99999999,137.11,137.08,7.96494061]
[1765204731157,0.99999999,137.11,137.08,0.67]
[1765204731336,0.99999999,137.11,137.1,13.44669823]
[1765204731534,0.99999999,137.13,137.1,13.44669823]
[1765204731843,0.99999999,137.17,137.12,6.15275221]
[1765204732028,0.99999999,137.17,137.16,6.15275221]
[1765204732224,0.99999999,137.18,137.16,13.44350753]
[1765204732454,1.92960746,137.24,137.17,6.82275221]
[1765204732632,0.99999999,137.23,137.17,0.67]
[1765204733043,1.19999999,137.24,137.17,0.67]
[1765204733257,0.99999999,137.23,137.17,0.67]
[1765204733471,0.2,137.24,137.18,8.80994492]
[1765204733765,0.2,137.24,137.23,6.15275221]
[1765204734256,0.2,137.24,137.23,14.10978857]
[1765204735157,0.99999999,137.23,137.22,6.15275221]
[1765204735661,0.2,137.24,137.23,7.28703636]
[1765204735858,0.2,137.24,137.23,14.10978857]
[1765204736156,0.99999999,137.3,137.23,48.63624347]
[1765204736342,0.99999999,137.24,137.2,18.22065904]
[1765204736661,0.99999999,137.24,137.23,6.15275221]
[1765204736845,0.99999999,137.26,137.23,13.43978857]
[1765204737044,0.99999999,137.28,137.25,6.15275221]
[1765204737238,0.99999999,137.25,137.19,0.67]
[1765204737443,0.99999999,137.23,137.21,6.15275221]
[1765204737660,0.99999999,137.24,137.22,6.15275221]
[1765204737863,0.99999999,137.23,137.21,7.28796676]
[1765204738047,0.99999999,137.24,137.17,7.98]
[1765204738243,0.99999999,137.2,137.17,7.28975887]
[1765204738439,0.99999999,137.21,137.19,7.28916101]
[1765204738868,0.99999999,137.23,137.2,6.82275221]
[1765204739165,0.99999999,137.24,137.22,6.15275221]
[1765204739367,0.99999999,137.24,137.23,6.15275221]
[1765204739550,0.99999999,137.23,137.22,6.15275221]
[1765204739947,0.99999999,137.24,137.22,6.83275221]
[1765204740159,0.99999999,137.27,137.23,14.11978857]
[1765204740370,0.99999999,137.3,137.26,6.15275221]
[1765204740663,1.72960746,137.34,137.29,6.15275221]
[1765204740843,0.99999999,137.32,137.3,6.15275221]
[1765204741038,1.0,137.4,137.27,6.15275221]
[1765204741039,0.99999999,137.29,137.27,6.15275221]
[1765204741259,0.99999999,137.29,137.28,6.15275221]
[1765204741442,0.99999999,137.3,137.28,6.15275221]
[1765204741644,0.99999999,137.33,137.29,0.68]
[1765204741873,0.99999999,137.34,137.3,6.15275221]
[1765204742042,0.99999999,137.36,137.32,6.15275221]
[1765204742247,0.99999999,137.39,137.34,6.15275221]
[1765204742442,0.99999999,137.42,137.37,6.15275221]
[1765204742644,0.99999999,137.42,137.39,6.15275221]
[1765204742950,0.99999999,137.43,137.4,0.68]
[1765204743141,0.1,137.45,137.41,6.15275221]
[1765204743487,0.1,137.45,137.43,6.15275221]
[1765204743649,0.1,137.45,137.4,8.66]
[1765204743650,1.09999999,137.45,137.41,6.83275221]
[1765204743842,0.1,137.45,137.41,15.64269713]
[1765204744043,0.1,137.45,137.43,6.15275221]
[1765204744352,0.99999999,137.5,137.44,34.12565773]
[1765204744544,0.99999999,137.51,137.47,6.15275221]
[1765204744875,0.99999999,137.45,137.43,8.89048818]
[1765204745257,0.99999999,137.49,137.44,9.57048818]
[1765204745572,0.99999999,137.47,137.42,15.25689384]
[1765204745741,0.99999999,137.46,137.42,8.66]
[1765204745942,0.99999999,137.51,137.45,8.89048818]
[1765204746167,0.99999999,137.47,137.46,8.89048818]
[1765204746362,0.99999999,137.49,137.46,8.89048818]
[1765204746561,0.99999999,137.51,137.47,8.89048818]
[1765204746874,0.99999999,137.49,137.46,8.89048818]
[1765204747074,0.99999999,137.5,137.47,16.16459457]
[1765204747241,0.99999999,137.49,137.47,8.89048818]
[1765204747647,0.99999999,137.51,137.47,16.16475011]
[1765204747844,0.99999999,137.5,137.46,8.66]
[1765204748150,0.99999999,137.47,137.46,8.89048818]
[1765204748350,0.99999999,137.49,137.46,8.89048818]
[1765204748552,0.99999999,137.49,137.47,8.89048818]
[1765204748983,0.99999999,137.47,137.44,8.89048818]
[1765204749159,0.99999999,137.46,137.45,8.89048818]
[1765204749857,0.99999999,137.46,137.44,8.89048818]
[1765204750371,0.99999999,137.46,137.43,16.87048818]
[1765204750678,0.99999999,137.45,137.42,8.89048818]
[1765204750965,0.99999999,137.45,137.43,8.89048818]
[1765204751169,0.99999999,137.47,137.44,8.89048818]
[1765204751364,0.99999999,137.45,137.43,8.89048818]
[1765204751565,0.99999999,137.45,137.43,16.16679073]
[1765204751872,0.99999999,137.43,137.41,8.89048818]
[1765204752174,0.99999999,137.43,137.26,75.0]
[1765204752175,0.99999999,137.41,137.37,16.16967388]
[1765204752357,0.99999999,137.44,137.4,8.89048818]
[1765204752560,1.64999999,137.44,137.4,8.89048818]
[1765204752873,0.99999999,137.44,137.42,8.89048818]
[1765204753047,0.99999999,137.44,137.4,7.98]
[1765204753248,0.99999999,137.4,137.38,8.89048818]
[1765204753471,0.99999999,137.4,137.37,9.57048818]
[1765204753790,0.99999999,137.4,137.38,8.89048818]
[1765204754079,0.99999999,137.41,137.37,16.16998118]
[1765204754273,0.99999999,137.41,137.39,8.89048818]
[1765204754652,0.99999999,137.42,137.4,8.89048818]
[1765204754960,0.99999999,137.42,137.39,8.89048818]
[1765204755148,0.99999999,137.42,137.39,9.57048818]
[1765204755352,0.99999999,137.42,137.4,8.89048818]
[1765204755574,0.99999999,137.42,137.37,7.279493]
[1765204755575,0.99999999,137.41,137.37,7.279493]
[1765204755755,0.99999999,137.41,137.37,16.84998118]
[1765204756270,0.99999999,137.39,137.37,9.57048818]
[1765204756580,0.99999999,137.39,137.37,16.85001523]
[1765204756787,0.99999999,137.39,137.37,18.0046238]
[1765204757651,0.99999999,137.39,137.36,18.02509675]
[1765204757958,0.99999999,137.32,137.28,17.32932451]
[1765204758351,0.99999999,137.32,137.28,18.00932451]
[1765204758673,10.04509675,137.36,137.28,10.04509675]
[1765204758674,0.99999999,137.31,137.28,10.04509675]
[1765204759168,0.99999999,137.29,137.26,25.31021986]
[1765204759364,0.99999999,137.3,137.26,18.02509675]
[1765204759558,0.99999999,137.28,137.26,25.31049788]
[1765204760275,0.99999999,137.27,137.24,17.33123224]
[1765204760465,0.99999999,137.27,137.25,7.28560881]
[1765204761053,0.99999999,137.27,137.2,52.74939107]
[1765204761054,0.99999999,137.29,137.26,25.99054043]
[1765204761257,0.99999999,137.29,137.28,10.04509675]
[1765204761467,0.99999999,137.29,137.27,10.04509675]
[1765204761675,0.99999999,137.29,137.27,10.73509675]
[1765204762158,0.99999999,137.29,137.28,10.73509675]
[1765204762368,0.99999999,137.29,137.28,18.01947903]
[1765204762570,0.99999999,137.32,137.28,18.01947903]
[1765204762769,0.99999999,137.32,137.29,10.04509675]
[1765204762980,0.99999999,137.32,137.29,10.73509675]
[1765204763184,0.5,137.31,137.3,10.73509675]
[1765204763396,0.99999999,137.31,137.3,10.73509675]
[1765204763597,0.99999999,137.33,137.3,10.73509675]
[1765204763765,0.99999999,137.33,137.31,10.73509675]
[1765204764091,10.04509675,137.39,137.29,7.98]
[1765204764092,0.99999999,137.32,137.29,8.67]
[1765204764297,0.99999999,137.31,137.29,18.71509675]
[1765204764470,0.99999999,137.32,137.29,25.99884911]
[1765204764664,0.99999999,137.31,137.29,25.99884911]
[1765204764993,0.99999999,137.31,137.29,25.30884911]
[1765204765169,0.99999999,137.31,137.29,17.32884911]
[1765204765366,0.99999999,137.3,137.29,17.32884911]
[1765204765861,0.71,137.35,137.29,17.32884911]
[1765204765862,0.99999999,137.31,137.29,18.01884911]
[1765204766498,0.99999999,137.34,137.3,18.71509675]
[1765204766704,1.0,137.45,137.3,18.71509675]
[1765204766705,0.99999999,137.38,137.33,10.23893676]
[1765204767007,0.99999999,137.35,137.31,10.92893676]
[1765204767296,0.99999999,137.35,137.34,10.23893676]
[1765204767775,0.99999999,137.38,137.34,10.92893676]
[1765204768088,0.99999999,137.35,137.33,7.98]
[1765204768287,0.99999999,137.35,137.32,10.23893676]
[1765204768482,0.99999999,137.34,137.31,7.98]
[1765204768683,0.99999999,137.34,137.31,8.67]
[1765204768986,0.99999999,137.34,137.31,26.87695412]
[1765204769189,0.99999999,137.32,137.3,7.28332119]
[1765204769769,0.99999999,137.33,137.31,10.23893676]
[1765204769968,0.99999999,137.33,137.31,10.92893676]
[1765204770291,0.99999999,137.33,137.32,7.28226041]
[1765204770619,19.18977293,137.44,137.33,8.80994492]
[1765204770620,0.99999999,137.39,137.33,8.80994492]
[1765204770801,0.99999999,137.37,137.34,7.98]
[1765204771098,0.99999999,137.36,137.35,10.23893676]
[1765204771268,0.99999999,137.39,137.35,10.92893676]
[1765204771586,0.99999999,137.4,137.36,10.92893676]
[1765204772169,0.99999999,137.39,137.36,10.92893676]
[1765204772365,0.99999999,137.38,137.37,7.27960981]
[1765204772782,0.99999999,137.38,137.37,17.51854657]
[1765204772989,0.99999999,137.4,137.37,18.20854657]
[1765204773189,0.99999999,137.41,137.39,10.23893676]
[1765204773395,0.99999999,137.4,137.38,18.90893676]
[1765204773716,1.43960747,137.45,137.38,18.90893676]
[1765204773717,1.70999999,137.44,137.38,7.98]
[1765204774004,0.99999999,137.4,137.38,18.21893676]
[1765204774296,0.99999999,137.42,137.4,7.27802037]
[1765204774499,7.27343623,137.49,137.41,10.23893676]
[1765204774500,0.99999999,137.43,137.41,10.23893676]
[1765204774676,0.99999999,137.45,137.41,18.21893676]
[1765204775011,0.99999999,137.45,137.43,10.23893676]
[1765204775193,0.99999999,137.46,137.44,10.23893676]
[1765204775579,0.99999999,137.48,137.45,0.69]
[1765204775891,0.99999999,137.52,137.47,10.23893676]
[1765204776191,0.99999999,137.52,137.5,10.23893676]
[1765204776490,0.99999999,137.53,137.51,17.51113514]
[1765204776796,0.99999999,137.55,137.51,35.6916311]
[1765204776992,0.99999999,137.53,137.51,33.43269434]
[1765204777195,0.99999999,137.56,137.52,10.92893676]
[1765204777491,0.99999999,137.55,137.53,10.23893676]
[1765204777699,0.99999999,137.54,137.53,10.23893676]
[1765204777902,0.99999999,137.53,137.47,0.69]
[1765204778104,0.99999999,137.5,137.49,7.27321476]
[1765204778308,0.99999999,137.48,137.44,17.51456102]
[1765204778476,0.99999999,137.46,137.44,17.51456102]
[1765204778683,0.99999999,137.46,137.43,7.98]
[1765204778684,0.99999999,137.47,137.45,17.51430962]
[1765204779210,8.96,137.57,137.45,17.51430962]
[1765204779211,0.99999999,137.5,137.46,18.90893676]
[1765204779379,0.99999999,137.5,137.47,10.23893676]
[1765204779702,0.99999999,137.49,137.47,10.92893676]
[1765204780077,0.99999999,137.49,137.47,10.23893676]
[1765204780489,0.99999999,137.49,137.46,7.98]
[1765204780673,16.39749764,137.53,137.46,18.21893676]
[1765204780674,0.99999999,137.48,137.46,18.21893676]
[1765204780874,0.99999999,137.49,137.47,7.27431439]
[1765204781091,0.71,137.52,137.46,18.21893676]
[1765204781092,0.99999999,137.47,137.46,10.23893676]
[1765204781697,0.99999999,137.44,137.43,17.51536839]
[1765204782277,0.99999999,137.44,137.43,10.23893676]
[1765204782482,0.99999999,137.44,137.42,7.27678163]
[1765204782687,0.99999999,137.45,137.43,17.51536839]
[1765204782885,0.99999999,137.45,137.44,10.23893676]
[1765204784500,0.99999999,137.45,137.42,7.27696114]
[1765204784690,0.99999999,137.44,137.43,10.23893676]
[1765204785397,0.99999999,137.46,137.43,10.92893676]
[1765204785710,0.99999999,137.45,137.44,8.65]
[1765204786000,0.99999999,137.45,137.42,25.46936399]
[1765204786211,0.99999999,137.44,137.42,34.11936399]
[1765204786580,0.99999999,137.46,137.43,10.92893676]
[1765204786780,0.71,137.49,137.43,0.69]
[1765204786781,0.99999999,137.47,137.43,0.69]
[1765204787108,0.99999999,137.46,137.44,0.69]
[1765204787400,0.99999999,137.48,137.45,7.96]
[1765204787582,7.96,137.54,137.45,7.96]
[1765204787583,0.99999999,137.49,137.45,7.96]
[1765204787784,0.99999999,137.49,137.48,10.23893676]
[1765204788397,0.99999999,137.5,137.48,10.23893676]
[1765204788585,0.99999999,137.5,137.49,17.51219299]
[1765204789904,0.99999999,137.52,137.49,17.51219299]
[1765204790109,0.99999999,137.51,137.49,10.23893676]
[1765204790307,0.99999999,137.51,137.5,10.23893676]
[1765204790489,0.99999999,137.5,137.49,10.23893676]
[1765204790687,0.99999999,137.5,137.49,17.51219299]
[1765204790987,0.99999999,137.52,137.49,17.51219299]
[1765204791198,1.67999999,137.51,137.45,7.96]
[1765204791388,0.99999999,137.49,137.46,25.46195256]
[1765204791590,0.72960747,137.54,137.45,7.27519008]
[1765204791591,0.99999999,137.47,137.45,7.27519008]
[1765204792331,0.99999999,137.46,137.43,15.23595051]
[1765204792613,0.99999999,137.43,137.42,17.51582008]
[1765204793581,0.99999999,137.45,137.42,36.37822293]
[1765204793794,0.99999999,137.46,137.44,10.23893676]
[1765204793998,0.99999999,137.46,137.45,10.23893676]
[1765204794599,0.99999999,137.46,137.45,17.51430962]
[1765204795190,0.99999999,137.46,137.45,7.27537286]
[1765204795606,0.99999999,137.44,137.43,7.2759167]
[1765204795911,0.99999999,137.44,137.43,17.51485346]
[1765204796401,0.99999999,137.44,137.43,7.2759167]
[1765204797338,0.99999999,137.43,137.4,10.23893676]
[1765204797493,0.99999999,137.42,137.41,7.27716972]
[1765204798114,0.99999999,137.42,137.37,45.20736486]
[1765204798115,0.99999999,137.41,137.38,7.27893746]
[1765204798303,0.99999999,137.39,137.38,7.27893746]
[1765204798695,0.99999999,137.41,137.38,26.14787422]
[1765204799024,0.99999999,137.41,137.4,10.23893676]
[1765204799224,0.99999999,137.39,137.38,7.27893746]
[1765204799401,0.99999999,137.39,137.37,10.23893676]
[1765204799599,0.99999999,137.41,137.38,17.51801668]
[1765204799910,0.99999999,137.41,137.39,10.23893676]
[1765204800108,0.99999999,137.4,137.39,0.67]
[1765204800410,0.99999999,137.43,137.4,0.67]
[1765204800716,0.99999999,137.44,137.43,7.27643163]
[1765204800890,0.99999999,137.44,137.43,17.51536839]
[1765204801095,0.99999999,137.48,137.43,18.18536839]
[1765204801320,0.99999999,137.48,137.47,10.23893676]
[1765204801709,0.99999999,137.49,137.47,10.23893676]
[1765204801902,0.99999999,137.49,137.48,10.23893676]
[1765204802101,0.99999999,137.48,137.46,10.23893676]
[1765204802299,0.99999999,137.41,137.39,8.80994492]
[1765204802626,0.99999999,137.41,137.38,9.47994492]
[1765204802627,0.99999999,137.41,137.4,10.23893676]
[1765204802799,0.99999999,137.41,137.4,17.51695713]
[1765204803001,0.99999999,137.44,137.4,36.38200807]
[1765204803200,0.99999999,137.41,137.4,7.27802037]
[1765204803397,0.99999999,137.41,137.38,7.27875829]
[1765204803623,10.23893676,137.44,137.39,7.27855011]
[1765204803624,0.99999999,137.4,137.39,7.27855011]
[1765204803925,0.99999999,137.38,137.36,7.96]
[1765204804249,0.99999999,137.41,137.37,10.23893676]
[1765204804524,1.0,137.51,137.4,10.23893676]
[1765204804525,0.68,137.49,137.4,10.23893676]
[1765204804729,0.72960747,137.48,137.43,10.23893676]
[1765204804903,10.96854423,137.48,137.42,7.27681942]
[1765204805103,0.68,137.47,137.42,7.27681942]
[1765204805329,10.23893676,137.45,137.38,10.23893676]
[1765204805531,0.72960747,137.46,137.33,19.04888168]
[1765204805532,10.23893676,137.4,137.33,19.04888168]
[1765204805707,10.23893676,137.38,137.32,7.28206838]
[1765204806099,10.91893676,137.38,137.32,7.28206838]
[1765204806337,0.68,137.37,137.31,7.28267858]
[1765204806508,10.23893676,137.36,137.27,46.6617409]
[1765204806703,10.23893676,137.36,137.31,7.28236014]
[1765204806931,0.68,137.36,137.31,7.96]
[1765204807103,0.68,137.36,137.31,18.86893676]
[1765204807303,0.68,137.36,137.29,25.49348095]
[1765204807500,0.68,137.36,137.3,7.96]
[1765204807936,0.68,137.36,137.3,18.19893676]
[1765204808240,0.68,137.39,137.32,10.23893676]
[1765204808451,10.23893676,137.38,137.31,0.67]
[1765204808605,16.76994492,137.42,137.35,10.23893676]
[1765204808606,8.64,137.42,137.35,10.23893676]
[1765204808808,10.91893676,137.44,137.37,7.27960981]
[1765204809006,0.72960747,137.43,137.37,7.27960981]
[1765204809207,0.72960747,137.46,137.42,10.23893676]
[1765204809411,0.68,137.48,137.42,10.23893676]
[1765204809412,0.72960747,137.48,137.42,10.23893676]
[1765204809618,0.72960747,137.49,137.44,10.23893676]
[1765204809817,0.72960747,137.48,137.42,10.90893676]
[1765204810022,16.308864,137.51,137.44,10.23893676]
[1765204810210,0.72960747,137.5,137.44,10.23893676]
[1765204810416,0.68,137.55,137.48,10.23893676]
[1765204810629,0.72960747,137.54,137.47,7.96]
[1765204810936,10.23893676,137.52,137.47,7.96]
[1765204811107,0.72960747,137.51,137.45,10.23893676]
[1765204811312,1.40960747,137.51,137.46,7.27446144]
[1765204811508,10.23893676,137.5,137.44,7.27586294]
[1765204811821,10.23893676,137.48,137.45,7.27516682]
[1765204812028,10.23893676,137.48,137.44,7.27577092]
[1765204812217,1.40960747,137.47,137.44,7.27577092]
[1765204812417,0.68,137.47,137.44,7.27577092]
[1765204812617,0.68,137.47,137.43,7.27641541]
[1765204812815,10.96854423,137.46,137.41,15.23704394]
[1765204813014,1.40960747,137.49,137.41,15.90704394]
[1765204813214,10.23893676,137.47,137.4,7.27796819]
[1765204813416,1.40960747,137.46,137.38,10.90893676]
[1765204813717,10.23893676,137.45,137.41,7.27743115]
[1765204814041,10.91893676,137.45,137.4,7.27796101]
[1765204814345,0.72960747,137.46,137.41,7.27734587]
[1765204814516,1.40960747,137.45,137.41,7.27734587]
[1765204814720,0.72960747,137.46,137.41,7.27734587]
[1765204814915,1.40960747,137.46,137.39,25.47492539]
[1765204815115,1.40960747,137.46,137.4,10.23893676]
[1765204815714,16.308864,137.49,137.44,10.23893676]
[1765204815715,0.72960747,137.49,137.44,10.23893676]
[1765204815917,10.96854423,137.51,137.44,10.23893676]
[1765204816114,10.96854423,137.51,137.43,10.23893676]
[1765204816321,10.23893676,137.49,137.42,10.23893676]
[1765204816537,0.72960747,137.52,137.44,10.23893676]
[1765204816749,0.72960747,137.52,137.45,0.67]
[1765204816935,10.91893676,137.51,137.44,10.23893676]
[1765204817113,10.91893676,137.51,137.43,7.27606383]
[1765204817114,10.23893676,137.49,137.41,10.90893676]
[1765204817315,10.23893676,137.47,137.41,7.96]
[1765204817538,0.72960747,137.48,137.41,18.19893676]
[1765204817740,0.72960747,137.48,137.41,18.86893676]
[1765204817915,0.72960747,137.49,137.44,10.23893676]
[1765204818114,0.72960747,137.49,137.43,10.23893676]
[1765204818115,6.17793927,137.49,137.43,10.23893676]
[1765204818328,6.17793927,137.49,137.44,10.23893676]
[1765204818554,1.40960747,137.49,137.44,10.23893676]
[1765204818858,1.40960747,137.49,137.44,6.11845214]
[1765204819048,0.68,137.48,137.44,6.11845214]
[1765204819230,1.40960747,137.49,137.44,6.11845214]
[1765204819550,5.49831211,137.5,137.46,6.11845214]
[1765204819753,0.72960747,137.52,137.47,6.11845214]
[1765204819956,1.40960747,137.52,137.47,6.11845214]
[1765204820126,7.52805961,137.52,137.46,6.11845214]
[1765204820445,6.11845214,137.5,137.42,15.90678362]
[1765204820620,6.11845214,137.48,137.42,6.11845214]
[1765204820815,6.11845214,137.48,137.39,16.978864]
[1765204820816,13.393825,137.45,137.4,7.96]
[1765204821138,11.61320224,137.44,137.37,7.96]
[1765204821346,11.61320224,137.44,137.28,0.72843822]
[1765204821347,6.82845214,137.43,137.34,0.72]
[1765204821638,6.11845214,137.42,137.35,6.11845214]
[1765204821841,11.59263509,137.42,137.35,6.11845214]
[1765204822152,6.82845214,137.41,137.35,6.11845214]
[1765204822325,6.11845214,137.38,137.32,6.11845214]
[1765204822530,6.11845214,137.38,137.31,6.11845214]
[1765204822727,6.11845214,137.38,137.28,18.93046723]
[1765204822728,6.11845214,137.36,137.3,6.11845214]
[1765204823244,0.71,137.35,137.3,6.11845214]
[1765204823822,0.71,137.35,137.3,13.40173248]
[1765204824052,0.71,137.35,137.3,6.11845214]
[1765204824450,6.82845214,137.35,137.28,6.11845214]
[1765204824751,0.71,137.35,137.31,6.11845214]
[1765204824918,0.71,137.35,137.3,6.11845214]
[1765204825455,6.82845214,137.38,137.31,6.11845214]
[1765204825617,31.54741937,137.39,137.32,6.11845214]
[1765204825618,16.308864,137.39,137.32,6.11845214]
[1765204825955,0.71,137.39,137.34,6.11845214]
[1765204826247,0.71,137.39,137.28,8.00427197]
[1765204826248,16.308864,137.34,137.28,8.00427197]
[1765204826424,16.308864,137.34,137.28,14.12272411]
[1765204826630,6.11845214,137.37,137.3,6.11845214]
[1765204826848,22.42731614,137.36,137.29,0.72]
[1765204829125,22.42731614,137.34,137.28,6.11845214]
[1765204829429,22.42731614,137.34,137.27,14.12321042]
[1765204829626,0.71,137.33,137.26,7.28531281]
[1765204829824,6.11845214,137.32,137.26,7.28534416]
[1765204830454,6.82845214,137.33,137.27,7.28466936]
[1765204830922,6.82845214,137.33,137.24,1516.66386412]
[1765204830923,6.11845214,137.31,137.24,1505.28706666]
[1765204831122,6.11845214,137.3,137.24,1506.45473072]
[1765204831449,6.11845214,137.28,137.24,1498.44861452]
[1765204831747,6.11845214,137.27,137.24,1498.44861452]
[1765204831958,8.80994492,137.34,137.25,0.72]
[1765204832124,88.94668984,137.41,137.25,9.42859744]
[1765204832125,6.11845214,137.37,137.25,9.42859744]
[1765204832322,0.71,137.33,137.25,7.98]
[1765204832547,16.308864,137.36,137.26,0.72]
[1765204832745,0.71,137.36,137.27,8.80994492]
[1765204833069,1.43960747,137.39,137.33,6.11845214]
[1765204833556,1.43960747,137.39,137.34,13.39965208]
[1765204833723,1.43960747,137.39,137.35,6.11845214]
[1765204833920,6.84805961,137.46,137.38,6.11845214]
[1765204834120,0.72960747,137.46,137.4,6.11845214]
[1765204834351,1.43960747,137.46,137.4,6.11845214]
[1765204834532,0.72960747,137.46,137.42,6.11845214]
[1765204834734,0.71,137.49,137.43,6.83845214]